{"text_format":"1","workbook":"xlsx","n_sheets":5,"sheets":["05.06.2023","06.06.2023","07.06.2023","08.06.2023","09.06.2023"],"not_rendered":{"charts":0,"images":0,"macros":1,"external_links":0,"defined_names":5,"comments":5,"pivot_tables":0},"unopened":[],"bounds":{"document_bytes":16777216,"sheet_cells":100000,"rows_first":2000,"rows_last":500,"rows_between":2000,"halvings":0,"cell_chars":16384,"cell_head_chars":4096},"cells_cut":0,"cells_raw":0,"read":"whole","date_system":"1900"}

{"sheet":"05.06.2023","index":0,"n_rows":58,"n_cols":13,"rows_kept":58,"cut":false,"hidden":false,"merged":[[50,0,50,3],[50,5,50,7],[51,0,51,3],[51,5,51,7],[52,0,52,3],[52,5,52,7],[57,0,57,3],[57,4,57,5],[57,7,57,8],[53,0,53,3],[53,5,53,7],[54,0,54,3],[54,5,54,7],[55,0,55,3],[55,5,55,7],[56,0,56,3],[56,4,56,5],[56,7,56,8],[49,0,49,3],[49,5,49,7],[42,1,42,2],[42,7,42,8],[43,1,43,2],[43,7,43,8],[44,1,44,2],[44,7,44,8],[45,1,45,2],[45,7,45,8],[46,1,46,2],[46,7,46,8],[47,1,47,2],[47,7,47,8],[48,0,48,8],[41,1,41,2],[41,7,41,8],[32,0,32,8],[33,0,33,8],[34,0,34,8],[35,0,35,8],[36,0,36,8],[37,0,37,8],[38,1,38,2],[38,7,38,8],[39,0,39,8],[40,1,40,2],[40,7,40,8],[31,0,31,8],[20,0,20,8],[21,0,21,8],[22,0,22,8],[23,0,23,8],[24,0,24,8],[25,0,25,8],[26,0,26,8],[27,0,27,8],[28,0,28,8],[29,0,29,8],[30,0,30,8],[19,0,19,3],[19,4,19,5],[19,6,19,8],[11,0,11,3],[11,4,11,8],[12,0,12,8],[13,0,13,9],[14,0,14,8],[15,0,15,8],[16,0,16,8],[17,0,17,8],[18,0,18,3],[18,4,18,5],[18,6,18,8],[8,0,8,3],[8,4,8,8],[9,0,9,3],[9,4,9,8],[10,0,10,3],[10,4,10,5],[10,6,10,8],[5,0,5,3],[5,4,5,5],[5,6,5,8],[6,0,6,8],[7,0,7,3],[7,4,7,8],[4,0,4,3],[4,4,4,5],[4,6,4,8],[0,0,0,3],[0,4,0,5],[0,6,0,8],[1,0,1,2],[1,4,1,5],[1,6,1,7],[2,0,2,3],[2,4,2,5],[2,6,2,8],[3,0,3,3],[3,4,3,8]]}
[]
["ЕЖЕДНЕВНЫЙ ОТЧЕТ №",null,null,5,{"$f":"G2-1","v":"2023-06-04"},null,"2023-06-05",null,411]
["Инженер строительного контроля\nООО «Промконсалтинг»",null,null,null,"Карлин Денис Олегович",null,"тел. 8-999-646-82-84"]
["Заказчик: ПАО «СН-МНГ»",null,null,null,"ПАО «Славнефть-Мегионнефтегаз»"]
["Начальник отдела ТН ПАО «СН-МНГ»",null,null,null,"Коцубей Владимир Сергеевич",null,"тел. 8-922-792-93-33"]
["Куратор за строительством объекта со стороны заказчика",null,null,null,"Зайнуллов Марс Ринатович",null,"тел.  8-922-782-4233"]
["Договор №10181-102 от 28.12.2017 г."]
["Месторождение:",null,null,null,"Западно-Асомкинское месторождение"]
["Наименование поднадзорного объекта:",null,null,null,"Куст скважин №105. ВЛ 6кВ №1 на КП №105."]
["Наименование строительного подрядчика:",null,null,null,"ООО   \"СМУ №7\""]
["Ф.И.О. мастера подрядной организации:",null,null,null,"Колчин Андрей Андреевич",null,"тел. 8-929-240-63-55"]
["Наименование строительного\nсубподрядчика:",null,null,null,"нет",null,null,null,null,null,null,null," "]
["I. Виды и объёмы проконтролированных работ, выполненных строительным подрядчиком:"]
["Дневная смена: с 8:00 до 20:00, температура: +22°/+31°С ветер 1 м/с"]
["Погружение свай-6шт\nМонтаж подкосов-1шт"]
["Ночная смена: с 20:00 до 08:00"]
["Работы не производились"]
["Фотоотчёт:"]
[]
["ФОТО 1",null,null,null,"ФОТО 2",null,"ФОТО 3"]
["II. Выявленные несоответствия, допущенные строительным подрядчиком при производстве работ: "]
["нет"]
["III. Приостановленные виды работ (причина остановки):"]
["нет"]
["IV. По результатам проведенной работы выданы (оформлены):"]
["1.Замечания: "]
["нет"]
["2. Предписания:\n"]
["нет"]
["3. Акты освидетельствования скрытых работ: "]
["нет"]
["4. Иная исполнительно-техническая  документация: "]
["нет"]
["V. Рекомендуемые мероприятия по выявленным несоответствиям, допущенных строительным подрядчиком при производстве работ:"]
["обеспечить стропальщика сигнальным жилетом"]
["VI. Устранено ранее выявленных несоответствий, допущенных строительным подрядчиком при производстве работ:"]
["нет"]
["VII. Накопительные объёмы  работ, выполненных строительным подрядчиком:"]
["№","Наименование работ",null,"ед. изм","За смену","По проекту","Выполнено ","Осталось"]
["ВЛ 6кВ №1"]
[1,"Изготовление свай ",null,"шт.",null,"110",106,{"$f":"F41-G41","v":4}]
[2,"Погружение  свай ",null,"шт.",null,"110",106,{"$f":"F42-G42","v":4}]
[3,"Срезка свай",null,"шт.",null,"110",106,{"$f":"F43-G43","v":4}]
[4,"Наращивание   сваи  (сборка/сварка стыка) с последующим АКЗ стыка",null,"шт.",null,"110",76,34]
[5,"Монтаж закладных пальцев опоры ВЛ",null,"шт.",5,"79",15,64]
[6,"Монтаж подкосов",null,"шт.",1,"20",1,{"$f":"F46-G46","v":19}]
[7,"Заполнение внутренней полости сваи ЦПС",null,"шт.",null,110,53,57]
[8,"Монтаж опор",null,"шт.",8,79,52,27]
["VIII. Наличие техники и людских ресурсов на объекте (месте производства СМР)"]
["Должность",null,null,null,"Кол-во\nчел.","Наименование техники, инструмента",null,null,"Кол-во"]
["ИТР",null,null,null,1,"Вахтовая машина",null,null,1]
["Монтажник",null,null,null,2,"МТЛБ",null,null,1]
["Сварщик",null,null,null,1]
["Водитель",null,null,null,1]
["Механизатор",null,null,null,1]
["ИТОГО:",null,null,null,{"$f":"SUM(E51:E55)","v":6},"ИТОГО:",null,null,{"$f":"SUM(I51:I55)","v":2}]
["Инженер строительного контроля\nООО «Промконсалтинг»",null,null,null,{"$f":"E3","v":"Карлин Денис Олегович"},null,null,{"$f":"G2","v":"2023-06-05"}]
["Должность",null,null,null,"Ф.И.О",null,"подпись","дата"]

{"sheet":"06.06.2023","index":1,"n_rows":58,"n_cols":13,"rows_kept":58,"cut":false,"hidden":false,"merged":[[4,0,4,3],[4,4,4,5],[4,6,4,8],[0,0,0,3],[0,4,0,5],[0,6,0,8],[1,0,1,2],[1,4,1,5],[1,6,1,7],[2,0,2,3],[2,4,2,5],[2,6,2,8],[3,0,3,3],[3,4,3,8],[5,0,5,3],[5,4,5,5],[5,6,5,8],[6,0,6,8],[7,0,7,3],[7,4,7,8],[8,0,8,3],[8,4,8,8],[9,0,9,3],[9,4,9,8],[10,0,10,3],[10,4,10,5],[10,6,10,8],[19,0,19,3],[19,4,19,5],[19,6,19,8],[11,0,11,3],[11,4,11,8],[12,0,12,8],[13,0,13,9],[14,0,14,8],[15,0,15,8],[16,0,16,8],[17,0,17,8],[18,0,18,3],[18,4,18,5],[18,6,18,8],[31,0,31,8],[20,0,20,8],[21,0,21,8],[22,0,22,8],[23,0,23,8],[24,0,24,8],[25,0,25,8],[26,0,26,8],[27,0,27,8],[28,0,28,8],[29,0,29,8],[30,0,30,8],[41,1,41,2],[41,7,41,8],[32,0,32,8],[33,0,33,8],[34,0,34,8],[35,0,35,8],[36,0,36,8],[37,0,37,8],[38,1,38,2],[38,7,38,8],[39,0,39,8],[40,1,40,2],[40,7,40,8],[42,1,42,2],[42,7,42,8],[43,1,43,2],[43,7,43,8],[44,1,44,2],[44,7,44,8],[51,0,51,3],[51,5,51,7],[45,1,45,2],[45,7,45,8],[46,1,46,2],[46,7,46,8],[47,1,47,2],[47,7,47,8],[48,0,48,8],[49,0,49,3],[49,5,49,7],[50,0,50,3],[50,5,50,7],[57,0,57,3],[57,4,57,5],[57,7,57,8],[52,0,52,3],[52,5,52,7],[53,0,53,3],[53,5,53,7],[54,0,54,3],[54,5,54,7],[55,0,55,3],[55,5,55,7],[56,0,56,3],[56,4,56,5],[56,7,56,8]]}
[]
["ЕЖЕДНЕВНЫЙ ОТЧЕТ №",null,null,6,{"$f":"G2-1","v":"2023-06-05"},null,"2023-06-06",null,411]
["Инженер строительного контроля\nООО «Промконсалтинг»",null,null,null,"Карлин Денис Олегович",null,"тел. 8-999-646-82-84"]
["Заказчик: ПАО «СН-МНГ»",null,null,null,"ПАО «Славнефть-Мегионнефтегаз»"]
["Начальник отдела ТН ПАО «СН-МНГ»",null,null,null,"Коцубей Владимир Сергеевич",null,"тел. 8-922-792-93-33"]
["Куратор за строительством объекта со стороны заказчика",null,null,null,"Зайнуллов Марс Ринатович",null,"тел.  8-922-782-4233"]
["Договор №10181-102 от 28.12.2017 г."]
["Месторождение:",null,null,null,"Западно-Асомкинское месторождение"]
["Наименование поднадзорного объекта:",null,null,null,"Куст скважин №105. ВЛ 6кВ №1 на КП №105."]
["Наименование строительного подрядчика:",null,null,null,"ООО   \"СМУ №7\""]
["Ф.И.О. мастера подрядной организации:",null,null,null,"Колчин Андрей Андреевич",null,"тел. 8-929-240-63-55"]
["Наименование строительного\nсубподрядчика:",null,null,null,"нет",null,null,null,null,null,null,null," "]
["I. Виды и объёмы проконтролированных работ, выполненных строительным подрядчиком:"]
["Дневная смена: с 8:00 до 20:00, температура: +22°/+31°С ветер 1 м/с"]
["Растаскивания опор \nСрезка свай 5шт\nМонтаж покодкосов 4шт\nЗасыпка свай 3шт\nМонтаж опор 2 шт "]
["Ночная смена: с 20:00 до 08:00"]
["Работы не производились"]
["Фотоотчёт:"]
[]
["ФОТО 1",null,null,null,"ФОТО 2",null,"ФОТО 3"]
["II. Выявленные несоответствия, допущенные строительным подрядчиком при производстве работ: "]
["нет"]
["III. Приостановленные виды работ (причина остановки):"]
["нет"]
["IV. По результатам проведенной работы выданы (оформлены):"]
["1.Замечания: "]
["нет"]
["2. Предписания:\n"]
["нет"]
["3. Акты освидетельствования скрытых работ: "]
["нет"]
["4. Иная исполнительно-техническая  документация: "]
["нет"]
["V. Рекомендуемые мероприятия по выявленным несоответствиям, допущенных строительным подрядчиком при производстве работ:"]
["обеспечить стропальщика сигнальным жилетом"]
["VI. Устранено ранее выявленных несоответствий, допущенных строительным подрядчиком при производстве работ:"]
["нет"]
["VII. Накопительные объёмы  работ, выполненных строительным подрядчиком:"]
["№","Наименование работ",null,"ед. изм","За смену","По проекту","Выполнено ","Осталось"]
["ВЛ 6кВ №1"]
[1,"Изготовление свай ",null,"шт.",null,"110",106,{"$f":"F41-G41","v":4}]
[2,"Погружение  свай ",null,"шт.",5,"110",106,{"$f":"F42-G42","v":4}]
[3,"Срезка свай",null,"шт.",5,"110",106,{"$f":"F43-G43","v":4}]
[4,"Наращивание   сваи  (сборка/сварка стыка) с последующим АКЗ стыка",null,"шт.",5,"110",106,4]
[5,"Монтаж закладных пальцев опоры ВЛ",null,"шт.",5,"79",20,59]
[6,"Монтаж подкосов",null,"шт.",4,"20",5,15]
[7,"Заполнение внутренней полости сваи ЦПС",null,"шт.",null,110,53,57]
[8,"Монтаж опор",null,"шт.",2,79,54,25]
["VIII. Наличие техники и людских ресурсов на объекте (месте производства СМР)"]
["Должность",null,null,null,"Кол-во\nчел.","Наименование техники, инструмента",null,null,"Кол-во"]
["ИТР",null,null,null,1,"Вахтовая машина",null,null,1]
["Монтажник",null,null,null,2,"МТЛБ",null,null,1]
["Сварщик",null,null,null,1]
["Водитель",null,null,null,1]
["Механизатор",null,null,null,1]
["ИТОГО:",null,null,null,{"$f":"SUM(E51:E55)","v":6},"ИТОГО:",null,null,{"$f":"SUM(I51:I55)","v":2}]
["Инженер строительного контроля\nООО «Промконсалтинг»",null,null,null,{"$f":"E3","v":"Карлин Денис Олегович"},null,null,{"$f":"G2","v":"2023-06-06"}]
["Должность",null,null,null,"Ф.И.О",null,"подпись","дата"]

{"sheet":"07.06.2023","index":2,"n_rows":58,"n_cols":13,"rows_kept":58,"cut":false,"hidden":false,"merged":[[4,0,4,3],[4,4,4,5],[4,6,4,8],[0,0,0,3],[0,4,0,5],[0,6,0,8],[1,0,1,2],[1,4,1,5],[1,6,1,7],[2,0,2,3],[2,4,2,5],[2,6,2,8],[3,0,3,3],[3,4,3,8],[5,0,5,3],[5,4,5,5],[5,6,5,8],[6,0,6,8],[7,0,7,3],[7,4,7,8],[8,0,8,3],[8,4,8,8],[9,0,9,3],[9,4,9,8],[10,0,10,3],[10,4,10,5],[10,6,10,8],[19,0,19,3],[19,4,19,5],[19,6,19,8],[11,0,11,3],[11,4,11,8],[12,0,12,8],[13,0,13,9],[14,0,14,8],[15,0,15,8],[16,0,16,8],[17,0,17,8],[18,0,18,3],[18,4,18,5],[18,6,18,8],[31,0,31,8],[20,0,20,8],[21,0,21,8],[22,0,22,8],[23,0,23,8],[24,0,24,8],[25,0,25,8],[26,0,26,8],[27,0,27,8],[28,0,28,8],[29,0,29,8],[30,0,30,8],[41,1,41,2],[41,7,41,8],[32,0,32,8],[33,0,33,8],[34,0,34,8],[35,0,35,8],[36,0,36,8],[37,0,37,8],[38,1,38,2],[38,7,38,8],[39,0,39,8],[40,1,40,2],[40,7,40,8],[42,1,42,2],[42,7,42,8],[43,1,43,2],[43,7,43,8],[44,1,44,2],[44,7,44,8],[51,0,51,3],[51,5,51,7],[45,1,45,2],[45,7,45,8],[46,1,46,2],[46,7,46,8],[47,1,47,2],[47,7,47,8],[48,0,48,8],[49,0,49,3],[49,5,49,7],[50,0,50,3],[50,5,50,7],[57,0,57,3],[57,4,57,5],[57,7,57,8],[52,0,52,3],[52,5,52,7],[53,0,53,3],[53,5,53,7],[54,0,54,3],[54,5,54,7],[55,0,55,3],[55,5,55,7],[56,0,56,3],[56,4,56,5],[56,7,56,8]]}
[]
["ЕЖЕДНЕВНЫЙ ОТЧЕТ №",null,null,7,{"$f":"G2-1","v":"2023-06-09T21:00:50.700"},null,{"$f":"NOW()","v":"2023-06-10T21:00:50.700"},null,411]
["Инженер строительного контроля\nООО «Промконсалтинг»",null,null,null,"Карлин Денис Олегович",null,"тел. 8-999-646-82-84"]
["Заказчик: ПАО «СН-МНГ»",null,null,null,"ПАО «Славнефть-Мегионнефтегаз»"]
["Начальник отдела ТН ПАО «СН-МНГ»",null,null,null,"Коцубей Владимир Сергеевич",null,"тел. 8-922-792-93-33"]
["Куратор за строительством объекта со стороны заказчика",null,null,null,"Зайнуллов Марс Ринатович",null,"тел.  8-922-782-4233"]
["Договор №10181-102 от 28.12.2017 г."]
["Месторождение:",null,null,null,"Западно-Асомкинское месторождение"]
["Наименование поднадзорного объекта:",null,null,null,"Куст скважин №105. ВЛ 6кВ №1 на КП №105."]
["Наименование строительного подрядчика:",null,null,null,"ООО   \"СМУ №7\""]
["Ф.И.О. мастера подрядной организации:",null,null,null,"Колчин Андрей Андреевич",null,"тел. 8-929-240-63-55"]
["Наименование строительного\nсубподрядчика:",null,null,null,"нет",null,null,null,null,null,null,null," "]
["I. Виды и объёмы проконтролированных работ, выполненных строительным подрядчиком:"]
["Дневная смена: с 8:00 до 20:00, температура: +22°/+31°С ветер 1 м/с"]
["Монтаж опор пт 10-1 2шт монтаж подкос 2шт\nСрезка сваи 1шт\nСрезка покос 2 шт \nРаскатка провода , установка барабана"]
["Ночная смена: с 20:00 до 08:00"]
["Работы не производились"]
["Фотоотчёт:"]
[]
["ФОТО 1",null,null,null,"ФОТО 2",null,"ФОТО 3"]
["II. Выявленные несоответствия, допущенные строительным подрядчиком при производстве работ: "]
["нет"]
["III. Приостановленные виды работ (причина остановки):"]
["нет"]
["IV. По результатам проведенной работы выданы (оформлены):"]
["1.Замечания: "]
["нет"]
["2. Предписания:\n"]
["нет"]
["3. Акты освидетельствования скрытых работ: "]
["нет"]
["4. Иная исполнительно-техническая  документация: "]
["нет"]
["V. Рекомендуемые мероприятия по выявленным несоответствиям, допущенных строительным подрядчиком при производстве работ:"]
["обеспечить стропальщика сигнальным жилетом"]
["VI. Устранено ранее выявленных несоответствий, допущенных строительным подрядчиком при производстве работ:"]
["нет"]
["VII. Накопительные объёмы  работ, выполненных строительным подрядчиком:"]
["№","Наименование работ",null,"ед. изм","За смену","По проекту","Выполнено ","Осталось"]
["ВЛ 6кВ №1"]
[1,"Изготовление свай ",null,"шт.",null,"110",106,{"$f":"F41-G41","v":4}]
[2,"Погружение  свай ",null,"шт.",null,"110",106,{"$f":"F42-G42","v":4}]
[3,"Срезка свай",null,"шт.",null,"110",106,{"$f":"F43-G43","v":4}]
[4,"Наращивание   сваи  (сборка/сварка стыка) с последующим АКЗ стыка",null,"шт.",null,"110",106,4]
[5,"Монтаж закладных пальцев опоры ВЛ",null,"шт.",0,"79",20,59]
[6,"Монтаж подкосов",null,"шт.",2,"20",5,15]
[7,"Заполнение внутренней полости сваи ЦПС",null,"шт.",null,110,106,4]
[8,"Монтаж опор",null,"шт.",2,79,56,23]
["VIII. Наличие техники и людских ресурсов на объекте (месте производства СМР)"]
["Должность",null,null,null,"Кол-во\nчел.","Наименование техники, инструмента",null,null,"Кол-во"]
["ИТР",null,null,null,1,"Вахтовая машина",null,null,1]
["Монтажник",null,null,null,2,"МТЛБ",null,null,1]
["Сварщик",null,null,null,1]
["Водитель",null,null,null,1]
["Механизатор",null,null,null,1]
["ИТОГО:",null,null,null,{"$f":"SUM(E51:E55)","v":6},"ИТОГО:",null,null,{"$f":"SUM(I51:I55)","v":2}]
["Инженер строительного контроля\nООО «Промконсалтинг»",null,null,null,{"$f":"E3","v":"Карлин Денис Олегович"},null,null,{"$f":"G2","v":"2023-06-10T21:00:50.700"}]
["Должность",null,null,null,"Ф.И.О",null,"подпись","дата"]

{"sheet":"08.06.2023","index":3,"n_rows":58,"n_cols":13,"rows_kept":58,"cut":false,"hidden":false,"merged":[[57,0,57,3],[57,4,57,5],[57,7,57,8],[52,0,52,3],[52,5,52,7],[53,0,53,3],[53,5,53,7],[54,0,54,3],[54,5,54,7],[55,0,55,3],[55,5,55,7],[56,0,56,3],[56,4,56,5],[56,7,56,8],[51,0,51,3],[51,5,51,7],[45,1,45,2],[45,7,45,8],[46,1,46,2],[46,7,46,8],[47,1,47,2],[47,7,47,8],[48,0,48,8],[49,0,49,3],[49,5,49,7],[50,0,50,3],[50,5,50,7],[42,1,42,2],[42,7,42,8],[43,1,43,2],[43,7,43,8],[44,1,44,2],[44,7,44,8],[41,1,41,2],[41,7,41,8],[32,0,32,8],[33,0,33,8],[34,0,34,8],[35,0,35,8],[36,0,36,8],[37,0,37,8],[38,1,38,2],[38,7,38,8],[39,0,39,8],[40,1,40,2],[40,7,40,8],[31,0,31,8],[20,0,20,8],[21,0,21,8],[22,0,22,8],[23,0,23,8],[24,0,24,8],[25,0,25,8],[26,0,26,8],[27,0,27,8],[28,0,28,8],[29,0,29,8],[30,0,30,8],[19,0,19,3],[19,4,19,5],[19,6,19,8],[11,0,11,3],[11,4,11,8],[12,0,12,8],[13,0,13,9],[14,0,14,8],[15,0,15,8],[16,0,16,8],[17,0,17,8],[18,0,18,3],[18,4,18,5],[18,6,18,8],[8,0,8,3],[8,4,8,8],[9,0,9,3],[9,4,9,8],[10,0,10,3],[10,4,10,5],[10,6,10,8],[5,0,5,3],[5,4,5,5],[5,6,5,8],[6,0,6,8],[7,0,7,3],[7,4,7,8],[4,0,4,3],[4,4,4,5],[4,6,4,8],[0,0,0,3],[0,4,0,5],[0,6,0,8],[1,0,1,2],[1,4,1,5],[1,6,1,7],[2,0,2,3],[2,4,2,5],[2,6,2,8],[3,0,3,3],[3,4,3,8]]}
[]
["ЕЖЕДНЕВНЫЙ ОТЧЕТ №",null,null,8,{"$f":"G2-1","v":"2023-06-09T21:00:50.700"},null,{"$f":"NOW()","v":"2023-06-10T21:00:50.700"},null,411]
["Инженер строительного контроля\nООО «Промконсалтинг»",null,null,null,"Карлин Денис Олегович",null,"тел. 8-999-646-82-84"]
["Заказчик: ПАО «СН-МНГ»",null,null,null,"ПАО «Славнефть-Мегионнефтегаз»"]
["Начальник отдела ТН ПАО «СН-МНГ»",null,null,null,"Коцубей Владимир Сергеевич",null,"тел. 8-922-792-93-33"]
["Куратор за строительством объекта со стороны заказчика",null,null,null,"Зайнуллов Марс Ринатович",null,"тел.  8-922-782-4233"]
["Договор №10181-102 от 28.12.2017 г."]
["Месторождение:",null,null,null,"Западно-Асомкинское месторождение"]
["Наименование поднадзорного объекта:",null,null,null,"Куст скважин №105. ВЛ 6кВ №1 на КП №105."]
["Наименование строительного подрядчика:",null,null,null,"ООО   \"СМУ №7\""]
["Ф.И.О. мастера подрядной организации:",null,null,null,"Колчин Андрей Андреевич",null,"тел. 8-929-240-63-55"]
["Наименование строительного\nсубподрядчика:",null,null,null,"нет",null,null,null,null,null,null,null," "]
["I. Виды и объёмы проконтролированных работ, выполненных строительным подрядчиком:"]
["Дневная смена: с 8:00 до 20:00, температура: +22°/+31°С ветер 1 м/с"]
["Срезка свай 2шт,  \nСрезка подкосов 4шт,\n Растаскивания опор 3шт,\nСварка оголовников 2шт,\nМонтаж подкосов 4шт ."]
["Ночная смена: с 20:00 до 08:00"]
["Работы не производились"]
["Фотоотчёт:"]
[]
["ФОТО 1",null,null,null,"ФОТО 2",null,"ФОТО 3"]
["II. Выявленные несоответствия, допущенные строительным подрядчиком при производстве работ: "]
["нет"]
["III. Приостановленные виды работ (причина остановки):"]
["нет"]
["IV. По результатам проведенной работы выданы (оформлены):"]
["1.Замечания: "]
["нет"]
["2. Предписания:\n"]
["нет"]
["3. Акты освидетельствования скрытых работ: "]
["нет"]
["4. Иная исполнительно-техническая  документация: "]
["нет"]
["V. Рекомендуемые мероприятия по выявленным несоответствиям, допущенных строительным подрядчиком при производстве работ:"]
["нет"]
["VI. Устранено ранее выявленных несоответствий, допущенных строительным подрядчиком при производстве работ:"]
["нет"]
["VII. Накопительные объёмы  работ, выполненных строительным подрядчиком:"]
["№","Наименование работ",null,"ед. изм","За смену","По проекту","Выполнено ","Осталось"]
["ВЛ 6кВ №1"]
[1,"Изготовление свай ",null,"шт.",null,"110",106,{"$f":"F41-G41","v":4}]
[2,"Погружение  свай ",null,"шт.",null,"110",106,{"$f":"F42-G42","v":4}]
[3,"Срезка свай",null,"шт.",2,"110",106,{"$f":"F43-G43","v":4}]
[4,"Наращивание   сваи  (сборка/сварка стыка) с последующим АКЗ стыка",null,"шт.",null,"110",106,4]
[5,"Монтаж закладных пальцев опоры ВЛ",null,"шт.",0,"79",20,59]
[6,"Монтаж подкосов",null,"шт.",4,"20",9,11]
[7,"Заполнение внутренней полости сваи ЦПС",null,"шт.",null,110,106,4]
[8,"Монтаж опор",null,"шт.",0,79,54,25]
["VIII. Наличие техники и людских ресурсов на объекте (месте производства СМР)"]
["Должность",null,null,null,"Кол-во\nчел.","Наименование техники, инструмента",null,null,"Кол-во"]
["ИТР",null,null,null,1,"Вахтовая машина",null,null,1]
["Монтажник",null,null,null,2,"МТЛБ",null,null,1]
["Сварщик",null,null,null,1]
["Водитель",null,null,null,1]
["Механизатор",null,null,null,1]
["ИТОГО:",null,null,null,{"$f":"SUM(E51:E55)","v":6},"ИТОГО:",null,null,{"$f":"SUM(I51:I55)","v":2}]
["Инженер строительного контроля\nООО «Промконсалтинг»",null,null,null,{"$f":"E3","v":"Карлин Денис Олегович"},null,null,{"$f":"G2","v":"2023-06-10T21:00:50.700"}]
["Должность",null,null,null,"Ф.И.О",null,"подпись","дата"]

{"sheet":"09.06.2023","index":4,"n_rows":58,"n_cols":13,"rows_kept":58,"cut":false,"hidden":false,"merged":[[4,0,4,3],[4,4,4,5],[4,6,4,8],[0,0,0,3],[0,4,0,5],[0,6,0,8],[1,0,1,2],[1,4,1,5],[1,6,1,7],[2,0,2,3],[2,4,2,5],[2,6,2,8],[3,0,3,3],[3,4,3,8],[5,0,5,3],[5,4,5,5],[5,6,5,8],[6,0,6,8],[7,0,7,3],[7,4,7,8],[8,0,8,3],[8,4,8,8],[9,0,9,3],[9,4,9,8],[10,0,10,3],[10,4,10,5],[10,6,10,8],[19,0,19,3],[19,4,19,5],[19,6,19,8],[11,0,11,3],[11,4,11,8],[12,0,12,8],[13,0,13,9],[14,0,14,8],[15,0,15,8],[16,0,16,8],[17,0,17,8],[18,0,18,3],[18,4,18,5],[18,6,18,8],[31,0,31,8],[20,0,20,8],[21,0,21,8],[22,0,22,8],[23,0,23,8],[24,0,24,8],[25,0,25,8],[26,0,26,8],[27,0,27,8],[28,0,28,8],[29,0,29,8],[30,0,30,8],[41,1,41,2],[41,7,41,8],[32,0,32,8],[33,0,33,8],[34,0,34,8],[35,0,35,8],[36,0,36,8],[37,0,37,8],[38,1,38,2],[38,7,38,8],[39,0,39,8],[40,1,40,2],[40,7,40,8],[42,1,42,2],[42,7,42,8],[43,1,43,2],[43,7,43,8],[44,1,44,2],[44,7,44,8],[51,0,51,3],[51,5,51,7],[45,1,45,2],[45,7,45,8],[46,1,46,2],[46,7,46,8],[47,1,47,2],[47,7,47,8],[48,0,48,8],[49,0,49,3],[49,5,49,7],[50,0,50,3],[50,5,50,7],[57,0,57,3],[57,4,57,5],[57,7,57,8],[52,0,52,3],[52,5,52,7],[53,0,53,3],[53,5,53,7],[54,0,54,3],[54,5,54,7],[55,0,55,3],[55,5,55,7],[56,0,56,3],[56,4,56,5],[56,7,56,8]]}
[]
["ЕЖЕДНЕВНЫЙ ОТЧЕТ №",null,null,9,{"$f":"G2-1","v":"2023-06-09T21:00:50.700"},null,{"$f":"NOW()","v":"2023-06-10T21:00:50.700"},null,411]
["Инженер строительного контроля\nООО «Промконсалтинг»",null,null,null,"Карлин Денис Олегович",null,"тел. 8-999-646-82-84"]
["Заказчик: ПАО «СН-МНГ»",null,null,null,"ПАО «Славнефть-Мегионнефтегаз»"]
["Начальник отдела ТН ПАО «СН-МНГ»",null,null,null,"Коцубей Владимир Сергеевич",null,"тел. 8-922-792-93-33"]
["Куратор за строительством объекта со стороны заказчика",null,null,null,"Зайнуллов Марс Ринатович",null,"тел.  8-922-782-4233"]
["Договор №10181-102 от 28.12.2017 г."]
["Месторождение:",null,null,null,"Западно-Асомкинское месторождение"]
["Наименование поднадзорного объекта:",null,null,null,"Куст скважин №105. ВЛ 6кВ №1 на КП №105."]
["Наименование строительного подрядчика:",null,null,null,"ООО   \"СМУ №7\""]
["Ф.И.О. мастера подрядной организации:",null,null,null,"Колчин Андрей Андреевич",null,"тел. 8-929-240-63-55"]
["Наименование строительного\nсубподрядчика:",null,null,null,"нет",null,null,null,null,null,null,null," "]
["I. Виды и объёмы проконтролированных работ, выполненных строительным подрядчиком:"]
["Дневная смена: с 8:00 до 20:00, температура: +22°/+31°С ветер 1 м/с"]
["Электромонтажные:\nПереклада из роликов в шс-800м\nРаскатка провода-800м\nСМР:\nКуст 105, ООО СМУ-7 \nМастер Журавлёв. В. С\nРоботы\nМонтаж опор пт10-1, 3шт\nСрезка свай 6шт\nСварка стойки опоры 3шт\nСварка оголовников 6шт "]
["Ночная смена: с 20:00 до 08:00"]
["Работы не производились"]
["Фотоотчёт:"]
[]
["ФОТО 1",null,null,null,"ФОТО 2",null,"ФОТО 3"]
["II. Выявленные несоответствия, допущенные строительным подрядчиком при производстве работ: "]
["нет"]
["III. Приостановленные виды работ (причина остановки):"]
["нет"]
["IV. По результатам проведенной работы выданы (оформлены):"]
["1.Замечания: "]
["нет"]
["2. Предписания:\n"]
["нет"]
["3. Акты освидетельствования скрытых работ: "]
["нет"]
["4. Иная исполнительно-техническая  документация: "]
["нет"]
["V. Рекомендуемые мероприятия по выявленным несоответствиям, допущенных строительным подрядчиком при производстве работ:"]
["нет"]
["VI. Устранено ранее выявленных несоответствий, допущенных строительным подрядчиком при производстве работ:"]
["нет"]
["VII. Накопительные объёмы  работ, выполненных строительным подрядчиком:"]
["№","Наименование работ",null,"ед. изм","За смену","По проекту","Выполнено ","Осталось"]
["ВЛ 6кВ №1"]
[1,"Изготовление свай ",null,"шт.",null,"110",106,{"$f":"F41-G41","v":4}]
[2,"Погружение  свай ",null,"шт.",null,"110",106,{"$f":"F42-G42","v":4}]
[3,"Срезка свай",null,"шт.",2,"110",106,{"$f":"F43-G43","v":4}]
[4,"Наращивание   сваи  (сборка/сварка стыка) с последующим АКЗ стыка",null,"шт.",null,"110",106,4]
[5,"Монтаж закладных пальцев опоры ВЛ",null,"шт.",0,"79",20,59]
[6,"Монтаж подкосов",null,"шт.",4,"20",9,11]
[7,"Заполнение внутренней полости сваи ЦПС",null,"шт.",null,110,106,4]
[8,"Монтаж опор",null,"шт.",0,79,54,25]
["VIII. Наличие техники и людских ресурсов на объекте (месте производства СМР)"]
["Должность",null,null,null,"Кол-во\nчел.","Наименование техники, инструмента",null,null,"Кол-во"]
["ИТР",null,null,null,1,"Вахтовая машина",null,null,1]
["Монтажник",null,null,null,2,"МТЛБ",null,null,1]
["Сварщик",null,null,null,1]
["Водитель",null,null,null,1]
["Механизатор",null,null,null,1]
["ИТОГО:",null,null,null,{"$f":"SUM(E51:E55)","v":6},"ИТОГО:",null,null,{"$f":"SUM(I51:I55)","v":2}]
["Инженер строительного контроля\nООО «Промконсалтинг»",null,null,null,{"$f":"E3","v":"Карлин Денис Олегович"},null,null,{"$f":"G2","v":"2023-06-10T21:00:50.700"}]
["Должность",null,null,null,"Ф.И.О",null,"подпись","дата"]